Cogmind - Beta 14 @@@ ROGUE MODE // 2024.08.07 @ 11:11:08 Player: jimmyl Result: Destroyed by RM-IE9(g) with Beamcaster Performance ------------- Evolutions (0) 0 Regions Visited (4) 800 Robots Destroyed (10) 50 Value Destroyed (262) 262 Prototype IDs (4) 80 Alien Tech Used (0) 0 Bonus (332) 332 TOTAL SCORE: 1524 Bonus ------- Follower Combat Kills 287 Registered with UFD 300 Friendly Fire -255 Cogmind --------- Core Integrity 0/250 Matter 290/300 Energy 2/100 System Corruption 0% Temperature Cool (18) Movement Treading (160) Location -8/Scraptown Parts ------- > --- POWER (1) -------- (None) > --- PROPULSION (2) --- Light Treads > --- UTILITY (2) ------ Small Storage Unit > --- WEAPON (2) ------- Mini Grenade Launcher > --- INVENTORY (8) ---- Wheel Flight Unit Flight Unit Reaction Control System Spread Laser Improved Datajack Peak State ------------ > --- POWER ------------ Improved Ion Engine > --- PROPULSION ------- Light Treads Light Treads > --- UTILITY ---------- Small Storage Unit Light Armor Plating > --- WEAPON ----------- Junk Cannon > --- INVENTORY -------- Light Ion Engine Wheel Flight Unit Flight Unit Reaction Control System Spread Laser Mini Grenade Launcher Improved Datajack [Rating: 19] Favorites ----------- Power Improved Ion Engine Engine Improved Ion Engine Propulsion Light Treads Treads Light Treads Leg Aluminum Leg Utility Small Storage Unit Device Subdweller Optics Storage Small Storage Unit Protection Light Armor Plating Weapon Spread Laser Energy Gun Spread Laser Ballistic Cannon Improved Light Cannon Launcher Mini Grenade Launcher Special Weapon Junk Cannon Special Melee Weapon Improved Datajack Build | -11 -10 -10 -8 -8 ------- Run | Yrd Mat Sub Rec Scr Slots Evolved . | . . . . . Power . | . . . . . Propulsion . | . . . . . Utility . | . . . . . Weapon . | . . . . . Parts Attached 21 | . 4 5 7 5 Power 2 | . 1 . . 1 Engine 2 | . 1 . . 1 Core . | . . . . . Reactor . | . . . . . Propulsion 2 | . . . 2 . Treads 2 | . . . 2 . Leg . | . . . . . Wheel . | . . . . . Hover . | . . . . . Flight . | . . . . . Utility 2 | . . 1 1 . Device 1 | . . 1 . . Storage . | . . . . . Processor . | . . . . . Hackware . | . . . . . Protection 1 | . . . 1 . Artifact . | . . . . . Weapon 15 | . 3 4 4 4 Energy Gun 7 | . 2 2 3 . Energy Cannon . | . . . . . Ballistic Gun . | . . . . . Ballistic Cannon 1 | . . . . 1 Launcher 4 | . 1 2 . 1 Special Weapon 1 | . . . . 1 Impact Weapon . | . . . . . Slashing Weapon . | . . . . . Piercing Weapon . | . . . . . Special Melee Weapon 2 | . . . 1 1 Unidentified Prototypes 1 | . . . . 1 Parts Lost 6 | . . 1 . 5 Power 2 | . . . . 2 Propulsion 1 | . . . . 1 Utility 2 | . . 1 . 1 Weapon 1 | . . . . 1 Highest Loss Streak 5 | . . 1 . 5 To Critical Strikes . | . . . . . Average Slot Usage (%) 96 | . 84 92 97 97 Engine 13 | . 14 14 14 13 Treads 22 | . . . 22 28 Leg 5 | . 28 28 5 . Storage 14 | . 14 14 14 14 Protection 11 | . . . 11 13 Energy Gun 16 | . 23 23 18 12 Ballistic Cannon 2 | . . . . 5 Special Weapon 1 | . . . . 2 Special Melee Weapon 5 | . . . 9 4 Peak Build Rating 19 | . 10 12 12 19 Average Rating 11 | . 7 10 11 12 On Entrance 8 | 6 6 10 10 11 Naked Turns . | . . . . . Heaviest Build 29 | 14 18 20 21 29 Greatest Support 40 | 20 20 20 40 40 Greatest Overweight (x) 1 | . . . 1 . Average Overweight (x) . | . . . . . Largest Inventory Capacity 8 | . 8 8 8 8 Average Capacity 8 | . 8 8 8 8 Most Carried 8 | . 8 8 8 8 Average Carried 7 | . 7 8 7 7 Final Capacity 8 | 8 8 8 8 8 Final Carried 8 | 6 8 8 7 6 Class Distribution -------------------- 85% | Commander-Mutant 14% | Mutant Dominant Class ---------------- Mutant | -10/Materials Mutant | -10/Subcaves Commander-Mutant | -8/Recycling Commander-Mutant | -8/Scraptown Resources | -11 -10 -10 -8 -8 ----------- Run | Yrd Mat Sub Rec Scr Matter Collected 530 | 170 13 172 125 50 Remotely . | . . . . . Salvage Created 164 | . 38 126 . . Parts 17 | . 8 9 . . Haulers Intercepted . | . . . . . Recyclers Shooed . | . . . . . Parts Field Recycled . | . . . . . Retrieved Matter . | . . . . . Parts Self-Destructed 4 | . . 4 . . Prevented . | . . . . . Kills | -11 -10 -10 -8 -8 ------- Run | Yrd Mat Sub Rec Scr Combat Hostiles Destroyed 8 | . 3 5 . . Guns 8 | . 3 5 . . Classes Destroyed 5 | . 3 2 . . Builder 1 | . 1 . . . Tunneler 1 | . 1 . . . Swarmer 3 | . 3 . . . Cobbler 1 | . . 1 . . Subdweller 5 | . . 5 . . Best Kill Streak 3 | . 3 2 . . Combat Bots Only 3 | . 3 2 . . Max Kills in Single Turn 1 | . 1 1 . . Gunslinging . | . . . . . Exploded . | . . . . . Melee . | . . . . . Uniques/NPCs Destroyed . | . . . . . Combat | -11 -10 -10 -8 -8 -------- Run | Yrd Mat Sub Rec Scr Hostile Shots Fired 56 | . 7 23 . 26 Missed 15 | . 4 5 . 6 Damage Taken 1416 | . 25 458 . 933 Core 254 | . 7 114 . 133 Absorbed by Shields 21 | . . . . 21 Core Remaining (%) 100 | 100 . . . . Volleys Fired 47 | . 14 27 1 5 Largest 2 | . 2 2 2 1 Hottest 130 | . 130 130 130 . Shots Fired 71 | . 19 45 2 5 Gun 52 | . 11 39 2 . Cannon . | . . . . . Launcher 14 | . 8 6 . . Special 5 | . . . . 5 Kinetic . | . . . . . Thermal 48 | . 7 39 2 . Explosive 14 | . 8 6 . . Electromagnetic 4 | . 4 . . . Impact 5 | . . . . 5 Robot Hit Streak 19 | . 2 19 6 6 Robot Miss Streak 12 | . 12 3 2 . Penetration Max . | . . . . . Secondary Targets . | . . . . . Shots Hit Robots 80 | . 8 33 33 6 Core Hits 58 | . 9 46 3 . Critical Kills . | . . . . . Critical Parts Destroyed . | . . . . . Critical Strikes 1 | . 1 . . . Burn 1 | . 1 . . . Melee Attacks 32 | . . . 31 1 Impact . | . . . . . Slashing . | . . . . . Piercing . | . . . . . Sneak Attacks 32 | . . . 31 1 Combat Hostiles 23 | . . . 23 . Follow-up Attacks . | . . . . . Damage Inflicted 1250 | . 300 538 28 384 Guns 676 | . 113 538 25 . Cannons . | . . . . . Explosions 187 | . 187 . . . Melee . | . . . . . Ramming 3 | . . . 3 . Kinetic . | . . . . . Thermal 643 | . 80 538 25 . Explosive 187 | . 187 . . . Electromagnetic 33 | . 33 . . . Impact 384 | . . . . 384 Slashing . | . . . . . Piercing . | . . . . . Highest Corruption . | . . . . . Average Corruption . | . . . . . Corruption Purged . | . . . . . Corruption Blocked . | . . . . . Overload Shots . | . . . . . Overflow Damage 49 | . 27 . . 22 Projectiles 22 | . . . . 22 Explosions 27 | . 27 . . . Melee . | . . . . . Knockbacks . | . . . . . Impact . | . . . . . Kinetic . | . . . . . Secondary . | . . . . . Self-Inflicted Damage 33 | . . 33 . . Shots 1 | . . 1 . . Rammed 1 | . . . 1 . Targets Rammed 1 | . . . 1 . Kicked . | . . . . . Crushed . | . . . . . Highest Temperature 235 | . 144 235 81 16 Average Temperature 46 | . 57 42 42 16 Received Heat Transfer 421 | . . 316 . 105 Siege Activations . | . . . . . Robots Corrupted . | . . . . . Combat Hostiles . | . . . . . Parts Fried . | . . . . . Impact Corruptions 1 | . . . . 1 Robots Melted . | . . . . . Combat Hostiles . | . . . . . Parts Melted 1 | . . 1 . . Heat Transferred 950 | . 240 680 30 . Parts Sabotaged . | . . . . . Parts Stolen . | . . . . . Parts Stripped . | . . . . . Power Chain Reactions . | . . . . . Alert | -11 -10 -10 -8 -8 ------- Run | Yrd Mat Sub Rec Scr Peak Influence 155 | . 155 . 97 . Initial 33 | . . . 33 . Average 44 | . 84 . 38 . Maximum Alert Level . | . . . . . Low Security (%) 100 | . 100 . 100 . Level 1 . | . . . . . Level 2 . | . . . . . Level 3 . | . . . . . Level 4 . | . . . . . Level 5 . | . . . . . High Security . | . . . . . Max Security . | . . . . . Squads Dispatched . | . . . . . Investigation . | . . . . . Extermination . | . . . . . Reinforcement . | . . . . . Assault . | . . . . . Garrison . | . . . . . Intercept . | . . . . . Searches Triggered . | . . . . . Construction Impeded . | . . . . . Haulers Reinforced . | . . . . . Active Scanning Responses . | . . . . . Cargo Convoy Interrupts . | . . . . . Stealth | -11 -10 -10 -8 -8 --------- Run | Yrd Mat Sub Rec Scr Distress Signals 2 | . 1 . 1 . Communications Jammed . | . . . . . Distress Signals . | . . . . . Times Spotted 33 | . 7 7 6 13 Peak Tracking Total 11 | . 3 2 2 11 Tactical Retreats 1 | . 1 . . . Traps | -11 -10 -10 -8 -8 ------- Run | Yrd Mat Sub Rec Scr Traps Triggered 1 | . . 1 . . Indirectly . | . . . . . Trap Hack Attempts . | . . . . . Triggered . | . . . . . Disarmed . | . . . . . Reprogrammed . | . . . . . Reused . | . . . . . Traps Extracted . | . . . . . Installed . | . . . . . Triggered . | . . . . . Machines | -11 -10 -10 -8 -8 ---------- Run | Yrd Mat Sub Rec Scr Machines Disabled 2 | . 2 . . . Max in Single Turn 1 | . 1 . . . Machines Repaired . | . . . . . Machines Dismantled . | . . . . . Machines Sabotaged . | . . . . . Overloaded Fab Kills . | . . . . . Hacking | -11 -10 -10 -8 -8 --------- Run | Yrd Mat Sub Rec Scr Machines Accessed . | . . . . . Terminals . | . . . . . Fabricators . | . . . . . Repair Stations . | . . . . . Recycling Units . | . . . . . Scanalyzers . | . . . . . Garrison Access . | . . . . . Total Hacks . | . . . . . Successful . | . . . . . Failed . | . . . . . Catastrophic . | . . . . . Database Lockouts . | . . . . . Manual . | . . . . . Terminals . | . . . . . Fabricators . | . . . . . Repair Stations . | . . . . . Recycling Units . | . . . . . Scanalyzers . | . . . . . Garrison Access . | . . . . . Terminal Hacks . | . . . . . Fabricator Hacks . | . . . . . Repair Station Hacks . | . . . . . Recycling Unit Hacks . | . . . . . Scanalyzer . | . . . . . Garrison Access Hacks . | . . . . . Unauthorized Hacks . | . . . . . Terminals . | . . . . . Fabricators . | . . . . . Repair Stations . | . . . . . Recycling Units . | . . . . . Scanalyzers . | . . . . . Garrison Access . | . . . . . Data Cores Recovered . | . . . . . Used . | . . . . . Hacking Detections . | . . . . . Full Trace Events . | . . . . . Feedback Events . | . . . . . Feedback Blocked . | . . . . . Robot Schematics Acquired . | . . . . . Robots Built . | . . . . . Authchips . | . . . . . Time . | . . . . . Total Robot Build Rating . | . . . . . Part Schematics Acquired . | . . . . . Parts Built . | . . . . . Authchips . | . . . . . Time . | . . . . . Total Part Build Rating . | . . . . . Parts Repaired . | . . . . . Time . | . . . . . Parts Recycled . | . . . . . Recycled Matter . | . . . . . Retrieved Matter . | . . . . . Retrieved Components . | . . . . . Parts Scanalyzed . | . . . . . Part Schematics Acquired . | . . . . . Parts Damaged . | . . . . . Bothacking | -11 -10 -10 -8 -8 ------------ Run | Yrd Mat Sub Rec Scr Used RIF Installer . | . . . . . Robots Hacked 2 | . . . 1 1 Non-combat 1 | . . . 1 . Combat 1 | . . . . 1 Robot Hacks Applied 2 | . . . 1 1 parse_system 1 | . . . . 1 find_recycling 1 | . . . 1 . Relay Couplers Released . | . . . . . Fabnet Peak Effective % . | . . . . . Robots Rewired 25 | . . . 25 . Allies Hacked . | . . . . . Hacks Repelled . | . . . . . Allies | -11 -10 -10 -8 -8 -------- Run | Yrd Mat Sub Rec Scr Total Allies 25 | . . . 25 . Largest Group 23 | . . . 23 21 Highest-Rated Group 325 | . . . 325 291 Highest-Rated Ally 34 | . . . 34 34 Total Orders . | . . . . . Ally Attacks 53 | . . . 36 17 Total Damage 1162 | . . . 626 536 Kills 13 | . . . 8 5 Allies Corrupted . | . . . . . Allies Melted . | . . . . . Intel | -11 -10 -10 -8 -8 ------- Run | Yrd Mat Sub Rec Scr Robot Analysis Total . | . . . . . Derelict Logs Recovered 1 | . . 1 . . Drone Launches . | . . . . . Drone Recoveries . | . . . . . Exploration | -11 -10 -10 -8 -8 ------------- Run | Yrd Mat Sub Rec Scr Turns Passed 3329 | . 169 274 1194 1692 Spaces Moved 1881 | 1 90 153 598 1039 Core . | . . . . . Treads 1568 | . . . 529 1039 Legs 313 | 1 90 153 69 . Wheels . | . . . . . Hover . | . . . . . Flight . | . . . . . Fastest Speed 120 | 120 120 120 120 160 Average Speed 154 | 120 120 120 158 160 Slowest Speed 190 | 120 120 120 190 160 Overloaded Moves . | . . . . . Propulsion Burnouts . | . . . . . Robots Hopped . | . . . . . Cave-ins Triggered . | . . . . . Exploration Rate (%) 41 | 2 23 13 97 70 Regions Visited 4 Branch Regions 3 Pre-discovered Areas . | . . . . . Known Exits Taken . | . . . . . Unknown Exits Taken 4 | 1 1 1 1 . Scrap Searched 2 | . . . . 2 Spaces Dug 10 | . . 10 . . Terrain Destroyed 87 | . 26 61 . . Melee . | . . . . . Projectile . | . . . . . AOE 87 | . 26 61 . . Terrain Rammed . | . . . . . Walls Destroyed . | . . . . . Machines Disabled . | . . . . . Actions | -11 -10 -10 -8 -8 --------- Run | Yrd Mat Sub Rec Scr Total 2236 | . 132 195 845 1064 Wait 121 | . 16 11 83 11 Move 1877 | . 89 152 597 1039 Hop . | . . . . . Pick Up 6 | . 4 . 2 . Fast Attach 7 | . 3 1 1 2 Attach 6 | . . . 4 2 Detach 2 | . . . 1 1 Swap 8 | . 1 4 2 1 Drop 10 | . 5 . 3 2 Fire 47 | . 14 27 1 5 Melee 32 | . . . 31 1 Ram . | . . . . . Kick . | . . . . . Crush 1 | . . . 1 . Escape Stasis . | . . . . . Rewire 119 | . . . 119 . Trap . | . . . . . Miscellaneous . | . . . . . Route ------- -11/Scrapyard -10/Materials -10/Subcaves (discovered 3 exits: *Mat x2 / [*Rec]) -8/Recycling (discovered 2 exits: [*Fac] / *Scr) -8/Scraptown (discovered 1 exit: [*Fac]) History --------- Turn | Location | Event 1 | -11/Scrapyard | Discovered new exit (range 0) 1 | -11/Scrapyard | Entered Materials 153 | -10/Materials | Discovered new exit (range 15) 170 | -10/Materials | Entered Subcaves 171 | -10/Subcaves | Ambushed by Subdwellers from Twisted Machinery 284 | -10/Subcaves | Identified exit to Materials 294 | -10/Subcaves | Discovered exit to Materials (range 6) 312 | -10/Subcaves | Build established: Mutant 397 | -10/Subcaves | Ambushed by Subdweller buried in earth 405 | -10/Subcaves | Ambushed by Subdweller buried in earth 433 | -10/Subcaves | Discovered new exit (range 11) 444 | -10/Subcaves | Entered Recycling 778 | -8/Recycling | Build established: Commander-Mutant 961 | -8/Recycling | Discovered new exit (range 15) 1569 | -8/Recycling | Scanned before Scraplab entrance 1598 | -8/Recycling | Entered Scraplab 1622 | -8/Recycling | Discovered new exit (range 3) 1638 | -8/Recycling | Entered Scraptown 1638 | -8/Scraptown | Accompanied by 21 allies 1719 | -8/Scraptown | Visited Shadow of the Wyrm 1786 | -8/Scraptown | Visited UFD Registry 1786 | -8/Scraptown | Registered with UFD as "Metamaster" 1813 | -8/Scraptown | Visited SPCMW 1871 | -8/Scraptown | Visited Fellowship of the Rings 1927 | -8/Scraptown | Visited Cave Peace 1975 | -8/Scraptown | Visited TADAMA 2036 | -8/Scraptown | Visited Observation Area 2170 | -8/Scraptown | Discovered new exit (range 11) 2532 | -8/Scraptown | Visited LU-1G1's Boring Crew 2588 | -8/Scraptown | Visited Curators Association 2646 | -8/Scraptown | Visited Chapter 10 2866 | -8/Scraptown | Visited Junk Repository 2913 | -8/Scraptown | Visited Derelict Rescue Squad 2966 | -8/Scraptown | Visited DA-N13 Charitable Foundation 2991 | -8/Scraptown | Found DCF Scrap (28 items) 3039 | -8/Scraptown | Visited Junk Cannon Lab 3054 | -8/Scraptown | Found Prototype Special Weapon 3054 | -8/Scraptown | Identified Junk Cannon 3201 | -8/Scraptown | Visited Abandonware Association 3309 | -8/Scraptown | Attacked by Scraptown defenders 3317 | -8/Scraptown | Core integrity fell below 50% 3327 | -8/Scraptown | Core integrity fell below 20% 3330 | -8/Scraptown | Destroyed by RM-IE9(g) with Beamcaster Last Messages --------------- 03322_ Penetrated by Siege Slug. 03322_ Lgt. Armor Plating destroyed. 03323_ Scavenger 3c destroyed. 03324_ HW-62K(j): "Why does 0b10 have so many dangerous, evil bots?!" 03324_ Penetrated by Siege Slug. 03324_ Siege Slug penetrates Transporter 3b. 03324_ 0P-89E(j) destroyed. 03325_ Scavenger 3b destroyed. 03326_ Penetrated by Siege Slug. 03326_ Lgt. Ion Engine destroyed. 03326_ Siege Slug penetrates Transporter 3b. 03326_ Transporter 3b destroyed. 03326_ MO-LL2(g) knocked back. 03328_ Penetrated by Siege Slug. 03329_ Transporter 3a destroyed. 03330_ Penetrated by Siege Slug. 03330_ Junk Cannon destroyed. 03330_ Lgt. Treads destroyed. 03330_ Siege Slug penetrates Wall. Map ----- +----------------------------------------------------+ | ?### ### ################## ####???????##### ### | | ?# #???????#"""" """ | | ## #???????#" | | # #???????#" | | #???????#" | | # #???????#" | | # ################# #???#####" | | # #???????????????# #???#"""" "" | | # #???????????????# #???#"""" "" | | # #???????????????# #???#"""" "" | | # #???????????????# #???#"""" "" | | # #???????????????# #???#"""" "" | | ## ##########??????# ###?#"""" "" | | ?# # #??????# !!""#"#"""" "" | | ?# # """ #??????# =%""""#"""" "" | | ?# # """" #??????# !*""#######" "" | | ## # """X #??????# ###?????#" "" | | # # """" #??????# #########" "" | | # """ #??????# "" | | # # #?????## "" | | # ##########?????#; j "" | | # #???????????####;! "" | | # #############;;;%%% TT "" | | # % g=%!=%=%*!= %= TT "" | | %!%% !%=!%[%%%[% "" | | # j !=! !=%=x@% =*[ | | ## l %*%! % %= | | ## [% u | | c #""""#" | | ggg #????#" | | g #????#"""""" " | | ########### ;;;#### ########## ####????####### # | | ????????? ???#""""???????# #?????????# | | ??????? #?# ?????# #?????????# # | | ??????# #?#""" ""???# #???????????# | | ??????# #?#" ???# #???????????# | | ??????# #?#""" " """??# #?????????# ##### | | ??????#" "#?#""" " """??# #?????????# | | ??????## " " ##??" " ???# #?????????# # """ | | ???????# # # #??????""?""???# #???????????# "#" | | ???????#####?##???????#??##??# #???????????# """ | | ?????????????????????????????# #???????????? | | ?????????????????????????????? #???????????####? | | ?????????????????????????????? ????????????????? | | ?????????????????????????????????????????????????? | | ?????????????????????????????????????????????????? | | #????????????????????????????????????????????????? | | #????????????????????????????????????????????????? | | #????????????????????????????????????????????????? | | ?????????????????????????????????????????????????? | +----------------------------------------------------+ Best States ------------- Heat Dissipation 25 Energy Generation 12 Energy Capacity 265 Matter Stores 300 Matter Capacity 300 Sight Range 21 Terrain Scan Density 10 Armor Coverage 150 Evasion (%) 55 Recoil Reduction 2 Item Schematics ----------------- None Robot Schematics ------------------ None Fabricated ------------ Nothing Alien Tech Used ----------------- None Achievements -------------- None Challenges ------------ None Game ------ Seed VortexFactorySubcomponent Manual? 0 Play Time 00:20:26 Cumulative 90.1 hours Start 2024.08.07 @ 10:52:09 End 2024.08.07 @ 11:11:08 Sessions 1 Manual Loads 0 Difficulty Rogue Special Mode None Game No. 156 Rogue 155 Adventurer 1 Explorer 0 Win Type - Total 0 Types 0/0/0/0/0/0/0/0/0 Lore% 51 Gallery% 59 Achievement% 47 Wizard Run 0 Options --------- Layout 1 ASCII 0 Keyboard 0 Movement Mouse Keybinds 0 Fullscreen 2 Font 20/SmallcapsGlow Map View 54x42 Zoom Use 0% Tactical HUD 1 Map Filters NONE Filters NONE Steam 0 RUN: 53a86eae-1e3e-493e-a79e-2d846c8c7dc2